fUST/lending_fUST_20251030
["ID","MTS","AMOUNT","RATE_DAILY","PERIOD"]
[392693107,1761821439561,-188.6284852,0.00036592,2]
[392693108,1761821439570,-225.5556218,0.00036592,2]
[392693109,1761821439579,-369.9,0.00036595,60]
[392693110,1761821439588,-2367.88180835,0.00036668,2]
[392693111,1761821439597,-369.9,0.00036695,60]
[392693112,1761821439606,-151.0,0.00036695,2]
[392693113,1761821439616,-164.226913,0.00036695,31]
[392693114,1761821439630,-164.226913,0.00036695,31]
[392693115,1761821439639,-164.226913,0.00036695,31]
[392693116,1761821439648,-164.226913,0.00036695,31]
[392693117,1761821439657,-151.0,0.00036695,31]
[392693118,1761821439666,-2819.48,0.000367,14]
[392693119,1761821439675,-194.697282,0.000367,31]
[392693120,1761821439684,-194.697282,0.000367,31]
[392693121,1761821439693,-194.697282,0.000367,31]
[392693122,1761821439703,-194.697282,0.000367,31]
[392693123,1761821439712,-369.9,0.00036795,60]
[392693124,1761821439724,-369.9,0.00036895,60]
[392693125,1761821439733,-1000.0,0.00036925,30]
[392693126,1761821439742,-369.9,0.00036995,60]
[392693128,1761821439752,-369.9,0.00037095,60]
[392693129,1761821439761,-200.0,0.0003714,120]
[392693131,1761821439770,-369.9,0.00037195,60]
[392693132,1761821439780,-573.23517825,0.00037205,120]
[392693133,1761821439790,-369.9,0.00037295,60]
[392693134,1761821439802,-158.0,0.000373,120]
[392693135,1761821439811,-200.0,0.00037349,120]
[392693136,1761821439821,-369.9,0.00037395,60]
[392693137,1761821439830,-1121.0,0.000374,19]
[392693138,1761821439839,-1915.143361,0.000374,11]
[392693139,1761821439849,-369.9,0.00037495,60]
[392693140,1761821439858,-20933.0,0.000375,2]
[392693141,1761821439869,-8000.0,0.000375,60]
[392693142,1761821439878,-369.9,0.00037595,60]
[392693143,1761821439888,-200.0,0.00037656,120]
[392693144,1761821439898,-369.9,0.00037695,60]
[392693145,1761821439908,-200.0,0.00037696,120]
[392693146,1761821439917,-8830.27,0.000377,19]
[392693147,1761821439926,-369.9,0.00037795,60]
[392693149,1761821439935,-1015.47019201,0.000378,2]
[392693150,1761821439944,-150.46980579,0.000378,60]
[392693152,1761821439954,-151.0,0.00037828,14]
[392693153,1761821439963,-152.0,0.00037828,14]
[392693154,1761821439973,-152.0,0.00037828,14]
[392693155,1761821439982,-151.0,0.00037828,14]
[392693156,1761821439991,-331.0,0.00037828,14]
[392693157,1761821440000,-152.0,0.00037828,14]
[392693158,1761821440010,-189.15012302,0.00037828,14]
[392693159,1761821440019,-331.0,0.00037828,14]
[392693160,1761821440030,-152.0,0.00037828,14]
[392693161,1761821440039,-331.0,0.00037828,14]
[392693162,1761821440047,-152.0,0.00037828,14]
[392693163,1761821440056,-331.0,0.00037828,14]
[392693164,1761821440066,-331.0,0.00037828,14]
[392693165,1761821440075,-152.0,0.00037828,14]
[392693166,1761821440086,-331.0,0.00037828,14]
[392693167,1761821440102,-152.0,0.00037828,14]
[392693168,1761821440112,-331.0,0.00037828,14]
[392693169,1761821440123,-152.0,0.00037828,14]
[392693170,1761821440132,-152.0,0.00037828,14]
[392693171,1761821440141,-331.0,0.00037828,14]
[392693172,1761821440151,-331.0,0.00037828,14]
[392693173,1761821440160,-152.0,0.00037828,14]
[392693174,1761821440170,-331.0,0.00037828,14]
[392693175,1761821440179,-152.0,0.00037828,14]
[392693176,1761821440188,-152.0,0.00037828,14]
[392693177,1761821440197,-331.0,0.00037828,14]
[392693178,1761821440206,-152.0,0.00037828,14]
[392693179,1761821440216,-331.0,0.00037828,14]
[392693180,1761821440225,-152.0,0.00037828,14]
[392693181,1761821440234,-331.0,0.00037828,14]
[392693182,1761821440243,-152.0,0.00037828,14]
[392693183,1761821440251,-331.0,0.00037828,14]
[392693184,1761821440261,-331.0,0.00037828,14]
[392693185,1761821440270,-152.0,0.00037828,14]
[392693186,1761821440279,-156.28196455,0.00037828,14]
[392693187,1761821440288,-152.0,0.00037828,14]
[392693188,1761821440297,-152.0,0.00037828,14]
[392693189,1761821440306,-152.0,0.00037828,14]
[392693190,1761821440315,-152.0,0.00037828,14]
[392693191,1761821440324,-152.0,0.00037828,14]
[392693192,1761821440333,-152.0,0.00037828,14]
[392693193,1761821440342,-152.0,0.00037828,14]
[392693194,1761821440351,-153.73192086,0.00037828,14]
[392693195,1761821440360,-166.0,0.00037828,14]
[392693196,1761821440370,-166.0,0.00037828,14]
[392693197,1761821440380,-369.9,0.00037895,60]
[392693198,1761821440389,-369.9,0.00037995,60]
[392693199,1761821440400,-328.0,0.00038,7]
[392693200,1761821440409,-1982.36,0.00038,7]
[392693201,1761821440419,-369.9,0.00038095,60]
[392693202,1761821440429,-412.0,0.00038169,2]
[392693203,1761821440438,-417.371614,0.00038194,2]
[392693204,1761821440447,-369.9,0.00038195,60]
[392693205,1761821440457,-369.9,0.00038295,60]
[392693206,1761821440466,-4695.65283745,0.000383,2]
[392693207,1761821440477,-150.0,0.00038377,2]
[392693208,1761821440487,-369.9,0.00038395,120]
[392693209,1761821440499,-15143.86616902,0.000384,2]
[392693210,1761821440598,-150.106,0.00032169,2]
[392693211,1761821440608,-149.59209707,0.00035169,2]
[392693234,1761821446697,-0.40790293,0.00035169,2]
[392693235,1761821446707,-980.98225705,0.000384,2]
[392693257,1761822158850,606.01471978,0.00015,2]
[392693271,1761822447114,-150.52850186,0.00025276,2]
[392693273,1761822469628,3063.10843266,0.00025205,3]
[392693304,1761822632096,-223.29431088,0.00025291,2]
[392693305,1761822632106,-450.8911106,0.00025463,2]
[392693306,1761822632117,-999.0,0.00025786,2]
[392693307,1761822632127,-2219.92348519,0.000267,2]
[392693308,1761822632136,-1084.0,0.00026773,2]
[392693309,1761822632146,-151.0,0.00026774,2]
[392693310,1761822632155,-151.0,0.00026774,2]
[392693311,1761822632165,-151.0,0.00026774,2]
[392693312,1761822632174,-44.79039626,0.00026774,2]
[392693313,1761822632188,-106.20960374,0.00026774,2]
[392693314,1761822632197,-151.0,0.00026774,2]
[392693315,1761822632207,-151.0,0.00026774,2]
[392693316,1761822632216,-3.40949029,0.00026774,2]
[392693317,1761822632231,-147.59050971,0.00026774,2]
[392693318,1761822632245,-151.0,0.00026774,2]
[392693319,1761822632255,-151.0,0.00026774,2]
[392693320,1761822632264,-46.65078218,0.00026774,2]
[392693338,1761822640334,-104.34921782,0.00026774,2]
[392693339,1761822640344,-151.0,0.00026774,2]
[392693340,1761822640353,-151.0,0.00026774,2]
[392693341,1761822640362,-151.0,0.00026774,2]
[392693342,1761822640371,-151.0,0.00026774,2]
[392693343,1761822640380,-151.0,0.00026774,2]
[392693344,1761822640389,-151.0,0.00026774,2]
[392693345,1761822640398,-151.0,0.00026774,2]
[392693346,1761822640408,-151.0,0.00026774,2]
[392693347,1761822640417,-151.0,0.00026774,2]
[392693348,1761822640426,-151.0,0.00026774,2]
[392693349,1761822640435,-207.8582645,0.0002678,2]
[392693350,1761822640444,-197.273,0.00026789,14]
[392693351,1761822640454,-161.50447328,0.00026789,2]
[392693352,1761822640463,-23.2150444,0.00026789,2]
[392693353,1761822640474,-177.45168567,0.00026789,2]
[392693354,1761822640483,-500.0,0.00026789,2]
[392693355,1761822640492,-762.54831433,0.0002679,2]
[392693444,1761822997609,284.0899,0.00013699,2]
[392693445,1761822997808,284.0899,0.00020187,2]
[392693447,1761823452150,-249.4423457,0.00025205,2]
[392693448,1761823454244,-199.68079118,0.00025205,2]
[392693449,1761823456437,-450.89111063,0.00025205,2]
[392693452,1761823546281,-166.22492076,0.00025205,2]
[392693453,1761823546301,-218.82842467,0.00025205,2]
[392693454,1761823546319,-681.18582284,0.00025667,2]
[392693455,1761823628350,900.01217224,0.000252,2]
[392693456,1761823668630,3691.56527412,0.00018,2]
[392693457,1761823668656,10000.01,0.00018,2]
[392693458,1761823668678,6308.44472588,0.00018,2]
[392693459,1761823681397,168.98626,0.00025205,2]
[392693460,1761823701649,300.0,0.000252,2]
[392693462,1761823713472,1171.58462253,0.00024,60]
[392693465,1761823805079,3295.37734981,0.0002268,2]
[392693537,1761823832335,-295.82614086,0.00025205,2]
[392693538,1761823832345,-199.68079118,0.000253,2]
[392693539,1761823832355,-811.30067636,0.00025667,2]
[392693540,1761823832364,-159.959766,0.0002567,2]
[392693541,1761823832375,-1653.0599572,0.00026,30]
[392693542,1761823832386,-190.0,0.00026672,2]
[392693543,1761823832397,-1146.25191343,0.00026672,2]
[392693551,1761823838375,-53.74808657,0.00026672,2]
[392693552,1761823838387,-500.0,0.00026673,2]
[392693553,1761823838397,-500.0,0.00026673,2]
[392693554,1761823838408,-402.44651914,0.00026673,2]
[392693555,1761823838418,-500.0,0.00026673,2]
[392693556,1761823838429,-343.86918799,0.00026673,2]
[392693557,1761823838439,-500.0,0.00026673,2]
[392693558,1761823838450,-151.0,0.00026674,2]
[392693559,1761823838461,-151.0,0.00026674,2]
[392693560,1761823838472,-151.0,0.00026674,2]
[392693561,1761823838483,-151.0,0.00026674,2]
[392693562,1761823838494,-151.0,0.00026674,2]
[392693563,1761823838504,-151.0,0.00026674,2]
[392693564,1761823838516,-151.0,0.00026674,2]
[392693565,1761823838527,-151.0,0.00026674,2]
[392693566,1761823838543,-151.0,0.00026674,2]
[392693567,1761823838555,-151.0,0.00026674,2]
[392693568,1761823838565,-151.0,0.00026674,2]
[392693569,1761823838579,-151.0,0.00026674,2]
[392693570,1761823838589,-151.0,0.00026674,2]
[392693571,1761823838598,-151.0,0.00026674,2]
[392693572,1761823838608,-151.0,0.00026674,2]
[392693573,1761823838620,-151.0,0.00026674,2]
[392693574,1761823838631,-151.0,0.00026674,2]
[392693575,1761823838641,-151.0,0.00026674,2]
[392693576,1761823838652,-151.0,0.00026674,2]
[392693577,1761823838668,-151.0,0.00026674,2]
[392693578,1761823838679,-284.0899,0.00026676,2]
[392693579,1761823838691,-539.68,0.0002668,10]
[392693580,1761823838703,-157.819,0.00026689,14]
[392693581,1761823838715,-490.46671105,0.00026689,2]
[392693582,1761823838726,-381.37599377,0.00026689,2]
[392693583,1761823838738,-3224.3794392,0.0002669,2]
[392693584,1761823838752,-737.95606571,0.0002669,2]
[392693586,1761823840411,-23469.99999999,0.0002669,2]
[392693673,1761823843394,-449.73,0.0002668,10]
[392693675,1761823843405,-368.96143238,0.0002669,2]
[392693678,1761823843417,-3843.00806615,0.0002669,2]
[392693681,1761823848276,5000.0,0.00025205,2]
[392693682,1761823863648,786.72458934,0.00025205,2]
[392693684,1761824151563,169.104945,0.00012766,2]
[392693686,1761824431657,150.0,0.00014364,30]
[392693687,1761824432052,150.0,0.0001567,30]
[392693688,1761824505364,150.0,0.00014364,30]
[392693689,1761824529092,418.41718489,0.00025153,2]
[392693700,1761824826128,-177.08671442,0.00025229,2]
[392693701,1761824850142,1259.18,0.00030137,120]
[392693727,1761825032480,-236.71298578,0.00025214,2]
[392693729,1761825032489,-43.28361544,0.00025229,2]
[392693731,1761825032499,-500.0,0.000253,2]
[392693733,1761825032507,-512.35140376,0.00025314,30]
[392693736,1761825032534,-487.64859624,0.00025314,30]
[392693738,1761825032543,-169.104945,0.00025532,2]
[392693740,1761825032552,-160.0,0.00025788,2]
[392693742,1761825032561,-205.8312446,0.0002579,2]
[392693744,1761825032570,-205.92173437,0.00026476,2]
[392693746,1761825032579,-500.0,0.00026573,2]
[392693748,1761825032588,-505.38143525,0.00026573,2]
[392693750,1761825032597,-300.0,0.00026573,2]
[392693752,1761825032607,-300.0,0.00026573,2]
[392693754,1761825032616,-725.0,0.00026573,2]
[392693756,1761825032625,-151.0,0.00026574,2]
[392693758,1761825032633,-151.0,0.00026574,2]
[392693760,1761825032642,-151.0,0.00026574,2]
[392693762,1761825032652,-151.0,0.00026574,2]
[392693764,1761825032662,-151.0,0.00026574,2]
[392693766,1761825032671,-151.0,0.00026574,2]
[392693768,1761825032680,-151.0,0.00026574,2]
[392693770,1761825032690,-151.0,0.00026574,2]
[392693772,1761825032700,-151.0,0.00026574,2]
[392693774,1761825032709,-151.0,0.00026574,2]
[392693776,1761825032718,-151.0,0.00026574,2]
[392693778,1761825032727,-151.0,0.00026574,2]
[392693780,1761825032736,-151.0,0.00026574,2]
[392693782,1761825032745,-151.0,0.00026574,2]
[392693784,1761825032754,-151.0,0.00026574,2]
[392693786,1761825032763,-151.0,0.00026574,2]
[392693788,1761825032773,-151.0,0.00026574,2]
[392693790,1761825032782,-151.0,0.00026574,2]
[392693792,1761825032790,-151.0,0.00026574,2]
[392693794,1761825032799,-151.0,0.00026574,2]
[392693796,1761825032808,-32569.417339,0.00026576,2]
[392693798,1761825032818,-157.819,0.00026578,13]
[392693800,1761825032827,-413.82,0.0002658,10]
[392693802,1761825032836,-789.12,0.0002658,10]
[392693804,1761825032845,-8147.2305651,0.0002658,2]
[392693806,1761825032857,-187.11343114,0.00026589,2]
[392693809,1761825032866,-462.49667672,0.00026589,2]
[392693811,1761825032876,-81555.09916838,0.0002659,2]
[392693813,1761825032887,-8100.84807401,0.0002659,2]
[392693883,1761825046683,-657.6,0.0002658,10]
[392693884,1761825046693,-1342.4,0.0002659,2]
[392693885,1761825561375,155.0,0.00035445,120]
[392693888,1761825900378,285.047127,0.00013699,2]
[392693889,1761825900606,285.047127,0.00020187,2]
[392693903,1761825969616,150.52850186,0.00025198,2]
[392693904,1761826037183,-229.22868775,0.00025298,2]
[392693905,1761826037319,-1200.0,0.00025576,2]
[392693906,1761826037345,-300.0,0.00025576,2]
[392693907,1761826037364,-14838.9441061,0.00025577,2]
[392693908,1761826037388,-157.819,0.00025959,11]
[392693909,1761826037408,-1223.3351783,0.00026377,2]
[392693910,1761826037429,-8309.11792991,0.000264,2]
[392693911,1761826037448,-350.1,0.00026479,3]
[392693912,1761826037468,-612.05,0.00026479,10]
[392693913,1761826037486,-151.0,0.00026479,7]
[392693914,1761826037506,-1901.02046526,0.00026479,2]
[392693915,1761826037526,-336.80557257,0.00026479,2]
[392693916,1761826037546,-40857.74081146,0.00026479,2]
[392693917,1761826037565,-151.0,0.00026485,7]
[392693918,1761826037585,-500.0,0.00026485,2]
[392693919,1761826037604,-500.0,0.00026485,2]
[392693920,1761826037624,-500.0,0.00026485,2]
[392693921,1761826037645,-500.0,0.00026485,2]
[392693922,1761826037668,-500.0,0.00026485,2]
[392693923,1761826037687,-454.87608076,0.00026485,2]
[392693924,1761826037708,-170.77623837,0.00026485,2]
[392693925,1761826037727,-303.07689161,0.00026485,2]
[392693926,1761826037747,-180.69082394,0.00026485,2]
[392693927,1761826037767,-500.0,0.00026485,2]
[392693928,1761826037787,-500.0,0.00026485,2]
[392693929,1761826037809,-500.0,0.00026485,2]
[392693930,1761826037830,-500.0,0.00026485,2]
[392693931,1761826037848,-260.12404341,0.00026485,2]
[392693932,1761826037869,-500.0,0.00026485,2]
[392693933,1761826037890,-500.0,0.00026485,2]
[392693934,1761826037909,-500.0,0.00026485,2]
[392693935,1761826037929,-500.0,0.00026485,2]
[392693936,1761826037948,-500.0,0.00026485,2]
[392693937,1761826037968,-500.0,0.00026485,2]
[392693938,1761826037988,-500.0,0.00026485,2]
[392693939,1761826038008,-500.0,0.00026485,2]
[392693940,1761826038029,-500.0,0.00026485,2]
[392693941,1761826038049,-500.0,0.00026485,2]
[392693942,1761826038070,-500.0,0.00026485,2]
[392693943,1761826038090,-500.0,0.00026485,2]
[392693944,1761826038109,-500.0,0.00026485,2]
[392693945,1761826038129,-500.0,0.00026485,2]
[392693946,1761826038148,-500.0,0.00026485,2]
[392693947,1761826038168,-391.64718985,0.00026485,2]
[392693948,1761826038188,-500.0,0.00026485,2]
[392693949,1761826038208,-241.09332115,0.00026485,2]
[392693950,1761826038227,-500.0,0.00026485,2]
[392693951,1761826038246,-500.0,0.00026485,2]
[392693952,1761826038265,-500.0,0.00026485,2]
[392693953,1761826038284,-500.0,0.00026485,2]
[392693954,1761826038304,-500.0,0.00026485,2]
[392693955,1761826038327,-500.0,0.00026485,2]
[392693956,1761826038347,-500.0,0.00026485,2]
[392693957,1761826038367,-500.0,0.00026485,2]
[392693958,1761826038387,-500.0,0.00026485,2]
[392693959,1761826038406,-500.0,0.00026485,2]
[392693960,1761826038426,-500.0,0.00026485,2]
[392693961,1761826038447,-500.0,0.00026485,2]
[392693962,1761826038466,-504.83955408,0.00026485,2]
[392693963,1761826038486,-500.0,0.00026485,2]
[392693964,1761826038508,-500.0,0.00026485,2]
[392693965,1761826038530,-500.0,0.00026485,2]
[392693966,1761826038550,-500.0,0.00026485,2]
[392693967,1761826038571,-500.0,0.00026485,2]
[392693968,1761826038590,-151.0,0.00026486,7]
[392693969,1761826038615,-151.0,0.00026486,7]
[392693970,1761826038635,-151.0,0.00026487,7]
[392693971,1761826038659,-151.0,0.00026487,7]
[392693972,1761826038679,-151.0,0.00026487,7]
[392693973,1761826038701,-151.0,0.00026487,7]
[392693974,1761826038721,-500.0,0.00026487,2]
[392693975,1761826038743,-500.0,0.00026488,2]
[392693976,1761826038762,-424.16358356,0.00026488,2]
[392693977,1761826038782,-203.54184639,0.00026488,2]
[392693978,1761826038803,-151.0,0.00026489,7]
[392693979,1761826038824,-65927.51294684,0.00026489,2]
[392693980,1761826044124,-150.52850186,0.00026485,7]
[392694013,1761826232742,-224.64411399,0.00025263,2]
[392694014,1761826232753,-796.4713982,0.00025321,2]
[392694015,1761826232763,-5539.41195328,0.000264,2]
[392694016,1761826232773,-151.0,0.00026473,2]
[392694018,1761826232784,-151.0,0.00026473,2]
[392694019,1761826232794,-151.0,0.00026473,2]
[392694020,1761826232804,-151.0,0.00026473,2]
[392694021,1761826232813,-151.0,0.00026473,2]
[392694022,1761826232823,-151.0,0.00026473,2]
[392694023,1761826232833,-151.0,0.00026473,2]
[392694024,1761826232843,-151.0,0.00026473,2]
[392694025,1761826232853,-151.0,0.00026473,2]
[392694026,1761826232862,-151.0,0.00026473,2]
[392694027,1761826232873,-151.0,0.00026473,2]
[392694028,1761826232882,-151.0,0.00026473,2]
[392694029,1761826232893,-151.0,0.00026473,2]
[392694030,1761826232902,-151.0,0.00026473,2]
[392694031,1761826232911,-151.0,0.00026473,2]
[392694032,1761826232921,-151.0,0.00026473,2]
[392694033,1761826232930,-151.0,0.00026473,2]
[392694034,1761826232939,-151.0,0.00026473,2]
[392694035,1761826232950,-151.0,0.00026473,2]
[392694036,1761826232959,-151.0,0.00026473,2]
[392694037,1761826232969,-300.0,0.00026478,2]
[392694038,1761826232978,-151.0,0.00026479,2]
[392694039,1761826232988,-245.97,0.00026479,10]
[392694040,1761826232997,-469.05,0.00026479,10]
[392694041,1761826233006,-210.18302109,0.00026488,2]
[392694042,1761826233015,-500.0,0.00026488,2]
[392694043,1761826233025,-360.12148013,0.00026488,2]
[392694044,1761826233034,-500.0,0.00026488,2]
[392694045,1761826233043,-550.48395541,0.00026488,2]
[392694046,1761826233052,-172.27599504,0.00026488,2]
[392694047,1761826233062,-58438.70993384,0.00026489,2]
[392694112,1761826239274,-390.87,0.00026479,10]
[392694113,1761826239283,-178188.62189881,0.00026489,2]
[392694114,1761826239294,-219180.0,0.00026489,2]
[392694157,1761826240781,-432.46140246,0.00026489,2]
[392694163,1761826240834,-162832.69381805,0.00026489,2]
[392694165,1761826240843,-981.35,0.000265,2]
[392694167,1761826240853,-480.0,0.00026573,2]
[392694169,1761826240862,-500.0,0.00026573,2]
[392694171,1761826240871,-151.0,0.00026588,7]
[392694173,1761826240880,-202.6713737,0.00026588,7]
[392694175,1761826240889,-151.0,0.00026588,7]
[392694177,1761826240899,-151.0,0.00026643,7]
[392694179,1761826240908,-285.047127,0.00026676,2]
[392694181,1761826240916,-198.0,0.00026698,7]
[392694183,1761826240925,-384.46069207,0.00026774,2]
[392694185,1761826240934,-1973.64,0.000268,7]
[392694187,1761826240943,-239.0,0.00027,2]
[392694189,1761826240952,-265.08005451,0.00027263,2]
[392694191,1761826240961,-300.0,0.00027325,30]
[392694193,1761826240971,-79.55803468,0.00027325,30]
[392694195,1761826240983,-220.44196532,0.00027325,30]
[392694197,1761826240995,-300.0,0.00027325,30]
[392694199,1761826241004,-300.0,0.00027325,30]
[392694201,1761826241013,-300.0,0.00027325,30]
[392694203,1761826241024,-300.0,0.00027325,30]
[392694205,1761826241033,-300.0,0.00027325,30]
[392694207,1761826241043,-300.0,0.00027325,30]
[392694209,1761826241052,-300.0,0.00027325,30]
[392694211,1761826241062,-300.0,0.00027325,30]
[392694213,1761826241071,-300.0,0.00027325,30]
[392694214,1761826241079,-38.96001373,0.00027325,30]
[392694217,1761826241094,-261.03998627,0.00027325,30]
[392694219,1761826241103,-300.0,0.00027325,30]
[392694221,1761826241112,-266.04340853,0.00027325,30]
[392694254,1761826246806,-33.95659147,0.00027325,30]
[392694255,1761826246816,-300.0,0.00027325,30]
[392694256,1761826246825,-600.0,0.00027325,30]
[392694257,1761826246835,-750.2,0.000274,2]
[392694258,1761826246844,-170.102837,0.00028219,2]
[392694259,1761826246854,-305.51599503,0.00029263,2]
[392694260,1761826246863,-720.0,0.00030057,30]
[392694261,1761826246871,-412.0,0.00030977,2]
[392694262,1761826246881,-345.95193555,0.00031263,2]
[392694263,1761826246891,-1837.27264095,0.00032445,7]
[392694264,1761826246914,-162.72735905,0.00032445,7]
[392694265,1761826246924,-864.0,0.00033063,30]
[392694266,1761826246934,-285.047127,0.00033165,2]
[392694267,1761826246944,-386.38787607,0.00033263,120]
[392694268,1761826246953,-412.0,0.00033977,2]
[392694269,1761826246962,-300.0,0.00034247,10]
[392694270,1761826246971,-250.0,0.00034825,2]
[392694271,1761826246980,-250.0,0.00034825,2]
[392694272,1761826246988,-250.0,0.00034825,2]
[392694273,1761826246998,-250.0,0.00034825,2]
[392694274,1761826247008,-250.0,0.00034825,2]
[392694275,1761826247017,-250.0,0.00034825,2]
[392694276,1761826247026,-250.0,0.00034825,2]
[392694277,1761826247036,-244.8042192,0.00034825,2]
[392694278,1761826247046,-620.19,0.00035,21]
[392694279,1761826247055,-300.0,0.00035068,12]
[392694280,1761826247065,-300.6,0.00035233,3]
[392694281,1761826247075,-426.82381658,0.00035263,120]
[392694282,1761826247084,-501.0,0.00035443,60]
[392694283,1761826247093,-200.0,0.00035478,30]
[392694284,1761826247103,-500.0,0.00035616,15]
[392694285,1761826247112,-5045.92,0.00036138,15]
[392694286,1761826247122,-1000.0,0.00036369,30]
[392694287,1761826247131,-500.0,0.0003642,13]
[392694288,1761826247140,-5539.41195327,0.00036438,2]
[392694289,1761826247149,-151.0,0.00036438,31]
[392694290,1761826247159,-151.0,0.00036438,31]
[392694291,1761826247170,-500.0,0.0003678,13]
[392694292,1761826247179,-412.0,0.00036977,2]
[392694293,1761826247188,-500.0,0.00036986,24]
[392694294,1761826247197,-467.2597571,0.00037263,120]
[392694295,1761826247206,-151.0,0.00037263,31]
[392694296,1761826247215,-203.90764564,0.00037263,31]
[392694297,1761826247224,-300.0,0.00038356,30]
[392694298,1761826247233,-516.82002136,0.00038373,5]
[392694299,1761826247242,-500.0,0.00038373,5]
[392694300,1761826247252,-500.11046437,0.00038373,5]
[392694301,1761826247261,-502.19159674,0.00038373,5]
[392694302,1761826247271,-217.13953379,0.00038373,5]
[392694303,1761826247281,-85318.65862983,0.000384,2]
[392694309,1761827156130,-166.22492076,0.00025205,2]
[392694310,1761827156150,-187.02197727,0.00025205,2]
[392694311,1761827156170,-158.205743,0.00025872,2]
[392694312,1761827156188,-554.78652724,0.000263,2]
[392694314,1761827226090,-1661.54180869,0.000263,2]
[392694315,1761827226112,-300.0,0.0002637,2]
[392694316,1761827226134,-151.0,0.00026371,2]
[392694317,1761827226155,-151.0,0.00026371,2]
[392694318,1761827226175,-151.0,0.00026371,2]
[392694319,1761827226196,-151.0,0.00026371,2]
[392694320,1761827226217,-151.0,0.00026371,2]
[392694321,1761827226237,-151.0,0.00026371,2]
[392694322,1761827226259,-151.0,0.00026371,2]
[392694323,1761827226280,-151.0,0.00026371,2]
[392694324,1761827226300,-151.0,0.00026371,2]
[392694325,1761827226324,-151.0,0.00026371,2]
[392694326,1761827226345,-151.0,0.00026371,2]
[392694327,1761827226366,-151.0,0.00026371,2]
[392694328,1761827226387,-151.0,0.00026371,2]
[392694329,1761827226409,-151.0,0.00026371,2]
[392694330,1761827226430,-151.0,0.00026371,2]
[392694331,1761827226450,-151.0,0.00026371,2]
[392694332,1761827226471,-151.0,0.00026371,2]
[392694333,1761827226492,-151.0,0.00026371,2]
[392694334,1761827226516,-151.0,0.00026371,2]
[392694335,1761827226536,-151.0,0.00026371,2]
[392694336,1761827226559,-861.24,0.00026377,3]
[392694337,1761827226578,-356.36,0.00026377,10]
[392694338,1761827226597,-509.2019103,0.00026377,2]
[392694339,1761827226616,-157.819,0.00026386,13]
[392694340,1761827226635,-500.0,0.00026386,2]
[392694341,1761827226654,-500.0,0.00026386,2]
[392694342,1761827226673,-500.0,0.00026386,2]
[392694343,1761827226691,-500.0,0.00026386,2]
[392694344,1761827226710,-500.0,0.00026386,2]
[392694345,1761827226730,-193.27300368,0.00026386,2]
[392694346,1761827226753,-367.2056454,0.00026386,2]
[392694347,1761827226774,-500.0,0.00026386,2]
[392694348,1761827226794,-500.0,0.00026386,2]
[392694349,1761827226817,-278.11560866,0.00026386,2]
[392694350,1761827226839,-493548.52582416,0.00026387,2]
[392694351,1761827252090,-296.96,0.00026377,10]
[392694352,1761827252110,-247.47,0.00026377,10]
[392694353,1761827252131,-150751.349422,0.00026387,2]
[392694354,1761827267422,8710.97005925,0.00018,2]